bitfinex-derivatives/quotes_BNBF0:USTF0_20250710
["timestamp","ask_amount","ask_price","bid_price","bid_amount"]
[1752141663104,1.50605791,671.07,669.94,0.25945075]
[1752141663404,1.50605791,671.06,669.94,0.25945075]
[1752141663610,1.50605791,671.05,669.94,0.25945075]
[1752141663809,1.50605791,671.04,669.94,0.25945075]
[1752141664010,1.50605791,671.03,669.94,0.25945075]
[1752141664311,1.50605791,671.02,669.94,0.25945075]
[1752141664510,1.50605791,671.01,669.94,0.25945075]
[1752141664708,1.50605791,671.0,669.94,0.25945075]
[1752141664909,1.50605791,670.99,669.94,0.25945075]
[1752141665107,1.50605791,670.98,669.94,0.25945075]
[1752141665407,1.50605791,670.97,669.94,0.25945075]
[1752141665609,1.50605791,670.96,669.94,0.25945075]
[1752141665808,1.50605791,670.95,669.94,0.25945075]
[1752141666007,1.50605791,670.94,669.94,0.25945075]
[1752141666211,1.50605791,670.93,669.94,0.25945075]
[1752141666412,1.50605791,670.92,669.94,0.25945075]
[1752141666712,1.50605791,670.91,669.94,0.25945075]
[1752141666911,1.50605791,670.9,669.94,0.25945075]
[1752141667212,1.50605791,670.89,669.94,0.25945075]
[1752141667409,1.50605791,670.88,669.94,0.25945075]
[1752141667613,1.50605791,670.87,669.94,0.25945075]
[1752141667809,1.50605791,670.86,669.94,0.25945075]
[1752141668009,1.6610347,671.18,669.94,0.25945075]
[1752141668213,1.50733814,671.17,669.94,0.25945075]
[1752141668413,1.5073895,671.16,669.94,0.25945075]
[1752141668613,1.5073895,671.15,669.94,0.25945075]
[1752141668913,1.5073895,671.14,669.94,0.25945075]
[1752141669214,1.5073895,671.13,669.94,0.25945075]
[1752141669415,1.5073895,671.12,669.94,0.25945075]
[1752141669614,1.5073895,671.11,669.94,0.25945075]
[1752141669814,1.5073895,671.1,669.94,0.25945075]
[1752141670015,1.5073895,671.09,669.94,0.25945075]
[1752141670215,1.5073895,671.08,669.94,0.25945075]
[1752141670412,1.5073895,671.07,669.94,0.25945075]
[1752141670614,1.5073895,671.06,669.94,0.25945075]
[1752141670917,1.5073895,671.05,669.94,0.25945075]
[1752141671114,1.5073895,671.04,669.94,0.25945075]
[1752141671317,1.5073895,671.03,669.94,0.25945075]
[1752141671515,1.5073895,671.02,669.94,0.25945075]
[1752141671815,1.5073895,671.01,669.94,0.25945075]
[1752141672119,1.5073895,671.0,669.94,0.25945075]
[1752141672317,1.5073895,670.99,669.94,0.25945075]
[1752141672515,1.5073895,670.98,669.94,0.25945075]
[1752141672718,1.5073895,670.97,669.94,0.25945075]
[1752141673016,1.5073895,670.96,669.94,0.25945075]
[1752141673317,1.5073895,670.95,669.94,0.25945075]
[1752141673517,1.5073895,670.94,669.94,0.25945075]
[1752141673714,1.5073895,670.93,669.94,0.25945075]
[1752141673919,1.5073895,670.92,669.94,0.25945075]
[1752141674119,1.5073895,670.91,669.94,0.25945075]
[1752141674320,1.5073895,670.9,669.94,0.25945075]
[1752141674517,1.5073895,670.89,669.94,0.25945075]
[1752141674718,1.5073895,670.88,669.94,0.25945075]
[1752141674919,1.5073895,670.87,669.94,0.25945075]
[1752141675121,1.5073895,670.86,669.94,0.25945075]
[1752141675318,1.66803237,671.18,669.94,0.25945075]
[1752141675622,1.50647422,671.17,669.94,0.25945075]
[1752141675821,1.50647422,671.16,669.94,0.25945075]
[1752141676122,1.50647422,671.15,669.94,0.25945075]
[1752141676321,1.50647422,671.14,669.94,0.25945075]
[1752141676522,1.50647422,671.13,669.94,0.25945075]
[1752141676722,1.50647422,671.12,669.94,0.25945075]
[1752141676923,1.50647422,671.11,669.94,0.25945075]
[1752141677123,1.50647422,671.1,669.94,0.25945075]
[1752141677319,1.50647422,671.09,669.94,0.25945075]
[1752141677618,1.50647422,671.08,669.94,0.25945075]
[1752141677818,1.50647422,671.07,669.94,0.25945075]
[1752141678024,1.50647422,671.06,669.94,0.25945075]
[1752141678325,1.50647422,671.05,669.94,0.25945075]
[1752141678524,1.50647422,671.04,669.94,0.25945075]
[1752141678718,1.50647422,671.03,669.94,0.25945075]
[1752141679021,1.50647422,671.02,669.94,0.25945075]
[1752141679320,1.50647422,671.01,669.94,0.25945075]
[1752141679523,1.50647422,671.0,669.94,0.25945075]
[1752141679720,1.50647422,670.99,669.94,0.25945075]
[1752141680021,1.50647422,670.98,669.94,0.25945075]
[1752141680321,1.50647422,670.97,669.94,0.25945075]
[1752141680621,1.50647422,670.96,669.94,0.25945075]
[1752141680820,1.50647422,670.95,669.94,0.25945075]
[1752141681023,1.50647422,670.94,669.94,0.25945075]
[1752141681222,1.50647422,670.93,669.94,0.25945075]
[1752141681424,1.50647422,670.92,669.94,0.25945075]
[1752141681725,1.50647422,670.91,669.94,0.25945075]
[1752141681920,1.50647422,670.9,669.94,0.25945075]
[1752141682120,1.50647422,670.89,669.94,0.25945075]
[1752141682323,1.50647422,670.88,669.94,0.25945075]
[1752141682524,1.50647422,670.87,669.94,0.25945075]
[1752141682724,0.25945366,671.19,669.94,0.25945075]
[1752141682725,1.50647422,670.86,669.94,0.25945075]
[1752141682923,1.5065104,670.85,669.94,0.25945075]
[1752141683122,0.25945366,671.19,669.94,0.25945075]
[1752141683325,1.50651001,671.18,669.94,0.25945075]
[1752141683526,1.50651001,671.17,669.94,0.25945075]
[1752141683724,1.50651001,671.16,669.94,0.25945075]
[1752141683922,1.50651001,671.15,669.94,0.25945075]
[1752141684128,1.50651001,671.14,669.94,0.25945075]
[1752141684328,1.50651001,671.13,669.94,0.25945075]
[1752141684524,1.50651001,671.12,669.94,0.25945075]
[1752141684727,1.50651001,671.11,669.94,0.25945075]
[1752141684926,1.50651001,671.1,669.94,0.25945075]
[1752141685227,1.50651001,671.09,669.94,0.25945075]
[1752141685526,1.50651001,671.08,669.94,0.25945075]
[1752141685729,1.50651001,671.07,669.94,0.25945075]
[1752141685929,1.50651001,671.06,669.94,0.25945075]
[1752141686229,1.50651001,671.05,669.94,0.25945075]
[1752141686424,1.50651001,671.04,669.94,0.25945075]
[1752141686629,1.50651001,671.03,669.94,0.25945075]
[1752141686828,1.50651001,671.02,669.94,0.25945075]
[1752141687028,1.50651001,671.01,669.94,0.25945075]
[1752141687226,1.50651001,671.0,669.94,0.25945075]
[1752141687528,1.50651001,670.99,669.94,0.25945075]
[1752141687729,1.50651001,670.98,669.94,0.25945075]
[1752141688032,1.50651001,670.97,669.94,0.25945075]
[1752141688328,1.50651001,670.96,669.94,0.25945075]
[1752141688526,1.50651001,670.95,669.94,0.25945075]
[1752141688729,1.50651001,670.94,669.94,0.25945075]
[1752141688927,1.50651001,670.93,669.94,0.25945075]
[1752141689125,1.50651001,670.92,669.94,0.25945075]
[1752141689330,1.50651001,670.91,669.94,0.25945075]
[1752141689630,1.50651001,670.9,669.94,0.25945075]
[1752141689830,1.50651001,670.89,669.94,0.25945075]
[1752141690031,1.50651001,670.88,669.94,0.25945075]
[1752141690332,0.25945366,671.19,669.94,0.25945075]
[1752141690333,1.50651001,670.87,669.94,0.25945075]
[1752141690628,0.25945366,671.19,669.94,0.25945075]
[1752141690832,1.50626084,671.18,669.94,0.25945075]
[1752141691030,1.50626084,671.17,669.94,0.25945075]
[1752141691228,0.25945366,671.19,669.94,0.25945075]
[1752141691229,1.50626084,671.16,669.94,0.25945075]
[1752141691431,1.50626084,671.15,669.94,0.25945075]
[1752141691634,1.50626084,671.14,669.94,0.25945075]
[1752141691834,1.50626084,671.13,669.94,0.25945075]
[1752141692032,1.50626084,671.12,669.94,0.25945075]
[1752141692232,1.50626084,671.11,669.94,0.25945075]
[1752141692435,1.50626084,671.1,669.94,0.25945075]
[1752141692633,1.50626084,671.09,669.94,0.25945075]
[1752141692833,1.50626084,671.08,669.94,0.25945075]
[1752141693130,1.50626084,671.07,669.94,0.25945075]
[1752141693332,1.50626084,671.06,669.94,0.25945075]
[1752141693634,1.50626084,671.05,669.94,0.25945075]
[1752141693835,1.50626084,671.04,669.94,0.25945075]
[1752141694035,1.50626084,671.03,669.94,0.25945075]
[1752141694336,1.50626084,671.02,669.94,0.25945075]
[1752141694637,1.50626084,671.01,669.94,0.25945075]
[1752141694834,1.50626084,671.0,669.94,0.25945075]
[1752141695039,1.50626084,670.99,669.94,0.25945075]
[1752141695237,1.50626084,670.98,669.94,0.25945075]
[1752141695438,1.50626084,670.97,669.94,0.25945075]
[1752141695637,1.50626084,670.96,669.94,0.25945075]
[1752141695837,0.25945366,671.19,669.94,0.25945075]
[1752141695838,1.50626084,670.95,669.94,0.25945075]
[1752141696137,1.50626084,670.94,669.94,0.25945075]
[1752141696336,1.50626084,670.93,669.94,0.25945075]
[1752141696540,1.50626084,670.92,669.94,0.25945075]
[1752141696739,1.50626084,670.91,669.94,0.25945075]
[1752141697041,1.50626084,670.9,669.94,0.25945075]
[1752141697240,1.50626084,670.89,669.94,0.25945075]
[1752141697442,1.50626084,670.88,669.94,0.25945075]
[1752141697640,0.25945366,671.19,669.94,0.25945075]
[1752141697843,1.50590372,671.18,669.94,0.25945075]
[1752141698139,1.50590372,671.17,669.94,0.25945075]
[1752141698342,1.50590372,671.16,669.94,0.25945075]
[1752141698540,0.25945366,671.19,669.94,0.25945075]
[1752141698541,1.50590372,671.15,669.94,0.25945075]
[1752141698741,1.50590372,671.14,669.94,0.25945075]
[1752141699039,1.50590372,671.13,669.94,0.25945075]
[1752141699246,1.50590372,671.12,669.94,0.25945075]
[1752141699444,1.50590372,671.11,669.94,0.25945075]
[1752141699645,1.50590372,671.1,669.94,0.25945075]
[1752141699844,1.50590372,671.09,669.94,0.25945075]
[1752141700049,1.50590372,671.08,669.94,0.25945075]
[1752141700251,1.50590372,671.07,669.94,0.25945075]
[1752141700449,1.50590372,671.06,669.94,0.25945075]
[1752141700647,1.50590372,671.05,669.94,0.25945075]
[1752141700950,1.50590372,671.04,669.94,0.25945075]
[1752141701150,1.50590372,671.03,669.94,0.25945075]
[1752141701347,1.50590372,671.02,669.94,0.25945075]
[1752141701547,1.50590372,671.01,669.94,0.25945075]
[1752141701751,1.50590372,671.0,669.94,0.25945075]
[1752141701948,1.50590372,670.99,669.94,0.25945075]
[1752141702147,1.50590372,670.98,669.94,0.25945075]
[1752141702449,1.50590372,670.97,669.94,0.25945075]
[1752141702648,1.50590372,670.96,669.94,0.25945075]
[1752141702851,1.50590372,670.95,669.94,0.25945075]
[1752141703049,1.50590372,670.94,669.94,0.25945075]
[1752141703253,1.50590372,670.93,669.94,0.25945075]
[1752141703453,1.50590372,670.92,669.94,0.25945075]
[1752141703654,1.50590372,670.91,669.94,0.25945075]
[1752141703949,1.50590372,670.9,669.94,0.25945075]
[1752141704154,1.50590372,670.89,669.94,0.25945075]
[1752141704352,1.50590372,670.88,669.94,0.25945075]
[1752141704650,1.50590372,670.87,669.94,0.25945075]
[1752141704856,0.25945366,671.19,669.94,0.25945075]
[1752141705056,1.50509857,671.18,669.94,0.25945075]
[1752141705352,1.50509857,671.17,669.94,0.25945075]
[1752141705552,0.25945366,671.19,669.94,0.25945075]
[1752141705553,1.50509857,671.16,669.94,0.25945075]
[1752141705756,1.50509857,671.15,669.94,0.25945075]
[1752141705953,1.50509857,671.14,669.94,0.25945075]
[1752141706153,1.50509857,671.13,669.94,0.25945075]
[1752141706358,1.50509857,671.12,669.94,0.25945075]
[1752141706658,1.50509857,671.11,669.94,0.25945075]
[1752141706858,1.50509857,671.1,669.94,0.25945075]
[1752141707055,1.50509857,671.09,669.94,0.25945075]
[1752141707259,1.50509857,671.08,669.94,0.25945075]
[1752141707459,1.50509857,671.07,669.94,0.25945075]
[1752141707656,1.50509857,671.06,669.94,0.25945075]
[1752141707856,1.66735556,671.04,669.94,0.25945075]
[1752141708063,1.50509857,671.03,669.94,0.25945075]
[1752141708360,1.50509857,671.02,669.94,0.25945075]
[1752141708556,1.50509857,671.01,669.94,0.25945075]
[1752141708759,1.50509857,671.0,669.94,0.25945075]
[1752141708955,1.50509857,670.99,669.94,0.25945075]
[1752141709260,1.50509857,670.98,669.94,0.25945075]
[1752141709456,1.50509857,670.97,669.94,0.25945075]
[1752141709662,1.50509857,670.96,669.94,0.25945075]
[1752141709958,1.50509857,670.95,669.94,0.25945075]
[1752141710160,1.50509857,670.94,669.94,0.25945075]
[1752141710359,1.50509857,670.93,669.94,0.25945075]
[1752141710559,1.50509857,670.92,669.94,0.25945075]
[1752141710759,1.50509857,670.91,669.94,0.25945075]
[1752141711060,1.50509857,670.9,669.94,0.25945075]
[1752141711260,1.50509857,670.89,669.94,0.25945075]
[1752141711459,1.50509857,670.88,669.94,0.25945075]
[1752141711659,1.50509857,670.87,669.94,0.25945075]
[1752141711859,1.50509857,670.86,669.94,0.25945075]
[1752141712063,1.66735556,671.13,669.94,0.25945075]
[1752141712064,1.50509857,670.85,669.94,0.25945075]
[1752141712263,1.50509857,670.84,669.94,0.25945075]
[1752141712463,1.50509857,670.83,669.94,0.25945075]
[1752141712660,1.50509857,670.82,669.94,0.25945075]
[1752141712865,1.50509857,670.81,669.94,0.25945075]
[1752141713161,1.50509857,670.8,669.94,0.25945075]
[1752141713465,1.66735556,671.17,669.94,0.25945075]
[1752141713659,1.50026725,671.16,669.94,0.25945075]
[1752141713863,1.50026725,671.15,669.94,0.25945075]
[1752141714064,1.50026725,671.14,669.94,0.25945075]
[1752141714265,1.50026725,671.13,669.94,0.25945075]
[1752141714560,1.50026725,671.12,669.94,0.25945075]
[1752141714765,1.50026725,671.11,669.94,0.25945075]
[1752141714965,1.50026725,671.1,669.94,0.25945075]
[1752141715164,1.50026725,671.09,669.94,0.25945075]
[1752141715362,1.50026725,671.08,669.94,0.25945075]
[1752141715562,1.66735556,671.06,669.94,0.25945075]
[1752141715766,1.50026725,671.05,669.94,0.25945075]
[1752141715967,1.50026725,671.04,669.94,0.25945075]
[1752141716166,1.50026725,671.03,669.94,0.25945075]
[1752141716464,1.50026725,671.02,669.94,0.25945075]
[1752141716667,1.50026725,671.01,669.94,0.25945075]
[1752141716866,1.50026725,671.0,669.94,0.25945075]
[1752141717168,1.50026725,670.99,669.94,0.25945075]
[1752141717367,1.50026725,670.98,669.94,0.25945075]
[1752141717568,1.50026725,670.97,669.94,0.25945075]
[1752141717768,1.50026725,670.96,669.94,0.25945075]
[1752141718066,1.50026725,670.95,669.94,0.25945075]
[1752141718266,1.50026725,670.94,669.94,0.25945075]
[1752141718464,1.66735556,671.04,669.94,0.25945075]
[1752141718465,1.50026725,670.93,669.94,0.25945075]
[1752141718671,1.50026725,670.92,669.94,0.25945075]
[1752141718868,1.50026725,670.91,669.94,0.25945075]
[1752141719065,1.50026725,670.9,669.94,0.25945075]
[1752141719264,1.50026725,670.89,669.94,0.25945075]
[1752141719466,1.50026725,670.88,669.94,0.25945075]
[1752141719772,1.50026725,670.87,669.94,0.25945075]
[1752141719970,1.50026725,670.86,669.94,0.25945075]
[1752141720169,1.50026725,670.85,669.94,0.25945075]
[1752141720371,1.50026725,670.84,669.94,0.25945075]
[1752141720672,1.50026725,670.83,669.94,0.25945075]
[1752141720972,1.50026725,670.82,669.94,0.25945075]
[1752141721173,1.50026725,670.81,669.94,0.25945075]
[1752141721472,1.50026725,670.8,669.94,0.25945075]
[1752141721672,1.50026725,670.79,669.94,0.25945075]
[1752141721967,1.50026725,670.78,669.94,0.25945075]
[1752141722169,1.50026725,670.77,669.94,0.25945075]
[1752141722367,1.50026725,670.76,669.94,0.25945075]
[1752141722566,1.50026725,670.75,669.94,0.25945075]
[1752141722770,1.50026725,670.74,669.94,0.25945075]
[1752141722967,1.50026725,670.73,669.94,0.25945075]
[1752141723168,1.50026725,670.72,669.94,0.25945075]
[1752141723368,1.50026725,670.71,669.94,0.25945075]
[1752141723569,1.50026725,670.7,669.94,0.25945075]
[1752141723769,1.50026725,670.69,669.94,0.25945075]
[1752141723971,1.50026725,670.68,669.94,0.25945075]
[1752141724172,1.50026725,670.67,669.94,0.25945075]
[1752141724367,1.50026725,670.66,669.94,0.25945075]
[1752141724570,1.50026725,670.65,669.94,0.25945075]
[1752141724773,1.50026725,670.64,669.94,0.25945075]
[1752141724971,1.50026725,670.63,669.94,0.25945075]
[1752141725268,1.50026725,670.62,669.94,0.25945075]
[1752141725471,1.50026725,670.61,669.94,0.25945075]
[1752141725670,1.50026725,670.6,669.94,0.25945075]
[1752141725974,1.50026725,670.59,669.94,0.25945075]
[1752141726268,1.50026725,670.58,669.94,0.25945075]
[1752141726475,1.50026725,670.57,669.94,0.25945075]
[1752141726672,1.50026725,670.56,669.94,0.25945075]
[1752141726869,1.50026725,670.55,669.94,0.25945075]
[1752141727069,1.50026725,670.54,669.94,0.25945075]
[1752141727274,1.50026725,670.53,669.94,0.25945075]
[1752141727569,1.50026725,670.52,669.94,0.25945075]
[1752141727773,1.50026725,670.51,669.94,0.25945075]
[1752141728074,1.50026725,670.5,669.94,0.25945075]
[1752141728371,1.50026725,670.49,669.94,0.25945075]
[1752141728573,1.66735556,670.83,669.94,0.25945075]
[1752141728574,1.50026725,670.48,669.94,0.25945075]
[1752141728772,1.50026725,670.47,669.94,0.25945075]
[1752141728976,1.50026725,670.46,669.94,0.25945075]
[1752141729172,1.50026725,670.45,669.94,0.25945075]
[1752141729377,1.66735556,670.84,669.94,0.25945075]
[1752141729671,1.4943792,670.83,669.94,0.25945075]
[1752141729872,1.4943792,670.82,669.94,0.25945075]
[1752141730076,1.4943792,670.81,669.94,0.25945075]
[1752141730276,1.4943792,670.8,669.94,0.25945075]
[1752141730476,1.4943792,670.79,669.94,0.25945075]
[1752141730675,1.4943792,670.78,669.94,0.25945075]
[1752141730874,1.4943792,670.77,669.94,0.25945075]
[1752141731076,1.4943792,670.76,669.94,0.25945075]
[1752141731276,1.4943792,670.75,669.94,0.25945075]
[1752141731475,1.4943792,670.74,669.94,0.25945075]
[1752141731679,1.4943792,670.73,669.94,0.25945075]
[1752141731880,1.4943792,670.72,669.94,0.25945075]
[1752141732081,1.4943792,670.71,669.94,0.25945075]
[1752141732281,1.4943792,670.7,669.94,0.25945075]
[1752141732577,1.4943792,670.69,669.94,0.25945075]
[1752141732776,1.4943792,670.68,669.94,0.25945075]
[1752141732981,1.4943792,670.67,669.94,0.25945075]
[1752141733277,1.4943792,670.66,669.94,0.25945075]
[1752141733481,1.4943792,670.65,669.94,0.25945075]
[1752141733679,1.4943792,670.64,669.94,0.25945075]
[1752141733879,1.4943792,670.63,669.94,0.25945075]
[1752141734078,1.4943792,670.62,669.94,0.25945075]
[1752141734281,1.4943792,670.61,669.94,0.25945075]
[1752141734479,1.4943792,670.6,669.94,0.25945075]
[1752141734784,1.4943792,670.59,669.94,0.25945075]
[1752141734984,1.4943792,670.58,669.94,0.25945075]
[1752141735183,1.4943792,670.57,669.94,0.25945075]
[1752141735381,1.4943792,670.56,669.94,0.25945075]
[1752141735583,1.4943792,670.55,669.94,0.25945075]
[1752141735781,1.4943792,670.54,669.94,0.25945075]
[1752141735983,1.4943792,670.53,669.94,0.25945075]
[1752141736285,1.4943792,670.52,669.94,0.25945075]
[1752141736483,1.4943792,670.51,669.94,0.25945075]
[1752141736783,1.4943792,670.5,669.94,0.25945075]
[1752141736983,1.4943792,670.49,669.94,0.25945075]
[1752141737182,1.4943792,670.48,669.94,0.25945075]
[1752141737387,1.4943792,670.47,669.94,0.25945075]
[1752141737589,1.4943792,670.46,669.94,0.25945075]
[1752141737784,1.66735556,670.83,669.94,0.25945075]
[1752141737986,1.4922544,670.82,669.94,0.25945075]
[1752141738186,1.4922544,670.81,669.94,0.25945075]
[1752141738388,1.4922544,670.8,669.94,0.25945075]
[1752141738684,1.4922544,670.79,669.94,0.25945075]
[1752141738883,1.4922544,670.78,669.94,0.25945075]
[1752141739188,1.4922544,670.77,669.94,0.25945075]
[1752141739487,1.4922544,670.76,669.94,0.25945075]
[1752141739683,1.4922544,670.75,669.94,0.25945075]
[1752141739885,1.4922544,670.74,669.94,0.25945075]
[1752141740086,1.4922544,670.73,669.94,0.25945075]
[1752141740386,1.4922544,670.72,669.94,0.25945075]
[1752141740584,1.4922544,670.71,669.94,0.25945075]
[1752141740785,1.4922544,670.7,669.94,0.25945075]
[1752141740988,1.4922544,670.69,669.94,0.25945075]
[1752141741187,1.4922544,670.68,669.94,0.25945075]
[1752141741389,1.4922544,670.67,669.94,0.25945075]
[1752141741585,1.4922544,670.66,669.94,0.25945075]
[1752141741786,1.4922544,670.65,669.94,0.25945075]
[1752141741989,1.4922544,670.64,669.94,0.25945075]
[1752141742191,1.4922544,670.63,669.94,0.25945075]
[1752141742485,1.4922544,670.62,669.94,0.25945075]
[1752141742787,1.4922544,670.61,669.94,0.25945075]
[1752141743087,1.4922544,670.6,669.94,0.25945075]
[1752141743285,1.4922544,670.59,669.94,0.25945075]
[1752141743489,1.4922544,670.58,669.94,0.25945075]
[1752141743689,1.4922544,670.57,669.94,0.25945075]
[1752141743889,1.4922544,670.56,669.94,0.25945075]
[1752141744090,1.4922544,670.55,669.94,0.25945075]
[1752141744286,1.4922544,670.54,669.94,0.25945075]
[1752141744591,1.4922544,670.53,669.94,0.25945075]
[1752141744788,1.4922544,670.52,669.94,0.25945075]
[1752141744988,1.4922544,670.51,669.94,0.25945075]
[1752141745191,1.4922544,670.5,669.94,0.25945075]
[1752141745392,1.4922544,670.49,669.94,0.25945075]
[1752141745592,1.4922544,670.48,669.94,0.25945075]
[1752141745786,1.4922544,670.47,669.94,0.25945075]
[1752141745991,1.4922544,670.46,669.94,0.25945075]
[1752141746293,1.4922544,670.45,669.94,0.25945075]
[1752141746494,1.4922544,670.44,669.94,0.25945075]
[1752141746690,1.4922544,670.43,669.94,0.25945075]
[1752141746891,1.4922544,670.42,669.94,0.25945075]
[1752141747093,1.4922544,670.41,669.94,0.25945075]
[1752141747293,1.4922544,670.4,669.94,0.25945075]
[1752141747493,1.4922544,670.39,669.94,0.25945075]
[1752141747795,1.4922544,670.38,669.94,0.25945075]
[1752141747994,1.04729115,670.76,669.94,0.25945075]
[1752141748195,2.53830251,670.75,669.94,0.25945075]
[1752141748395,2.53830251,670.74,669.94,0.25945075]
[1752141748594,2.53830251,670.73,669.94,0.25945075]
[1752141748790,2.53830251,670.72,669.94,0.25945075]
[1752141749091,1.49101136,670.71,669.94,0.25945075]
[1752141749294,1.49101136,670.7,669.94,0.25945075]
[1752141749490,1.49101136,670.69,669.94,0.25945075]
[1752141749693,1.49101136,670.68,669.94,0.25945075]
[1752141749894,1.49101136,670.67,669.94,0.25945075]
[1752141750092,1.66735556,670.77,669.94,0.25945075]
[1752141750093,1.49101136,670.66,669.94,0.25945075]
[1752141750295,1.49101136,670.65,669.94,0.25945075]
[1752141750493,1.49101136,670.64,669.94,0.25945075]
[1752141750791,1.49101136,670.63,669.94,0.25945075]
[1752141750995,1.49101136,670.62,669.94,0.25945075]
[1752141751292,1.49101136,670.61,669.94,0.25945075]
[1752141751497,1.49101136,670.6,669.94,0.25945075]
[1752141751793,1.49101136,670.59,669.94,0.25945075]
[1752141751991,1.49101136,670.58,669.94,0.25945075]
[1752141752289,1.49101136,670.57,669.94,0.25945075]
[1752141752493,1.49101136,670.56,669.94,0.25945075]
[1752141752693,1.49101136,670.55,669.94,0.25945075]
[1752141752895,1.49101136,670.54,669.94,0.25945075]
[1752141753195,1.49101136,670.53,669.94,0.25945075]
[1752141753395,1.49101136,670.52,669.94,0.25945075]
[1752141753590,1.49101136,670.51,669.94,0.25945075]
[1752141753789,1.66735556,670.78,669.94,0.25945075]
[1752141753790,1.49101136,670.5,669.94,0.25945075]
[1752141753992,1.49101136,670.49,669.94,0.25945075]
[1752141754191,1.49101136,670.48,669.94,0.25945075]
[1752141754395,1.49101136,670.47,669.94,0.25945075]
[1752141754596,1.49101136,670.46,669.94,0.25945075]
[1752141754797,1.66735556,670.77,669.94,0.25945075]
[1752141754798,1.49101136,670.45,669.94,0.25945075]
[1752141754997,1.49101136,670.44,669.94,0.25945075]
[1752141755198,1.49101136,670.43,669.94,0.25945075]
[1752141755396,1.49101136,670.42,669.94,0.25945075]
[1752141755694,1.49101136,670.41,669.94,0.25945075]
[1752141755894,1.66735556,670.71,669.94,0.25945075]
[1752141755895,1.49101136,670.4,669.94,0.25945075]
[1752141756094,1.49101136,670.39,669.94,0.25945075]
[1752141756297,1.49101136,670.38,669.94,0.25945075]
[1752141756598,1.49101136,670.37,669.94,0.25945075]
[1752141756796,1.49101136,670.36,669.94,0.25945075]
[1752141756998,1.49101136,670.35,669.94,0.25945075]
[1752141757197,1.49101136,670.34,669.94,0.25945075]
[1752141757397,1.49101136,670.33,669.94,0.25945075]
[1752141757593,1.49101136,670.32,669.94,0.25945075]
[1752141757795,1.49101136,670.31,669.94,0.25945075]
[1752141757999,1.49101136,670.3,669.94,0.25945075]
[1752141758195,1.04686476,670.65,669.94,0.25945075]
[1752141758400,1.49201485,670.64,669.94,0.25945075]
[1752141758600,1.49201485,670.63,669.94,0.25945075]
[1752141758901,1.49201485,670.62,669.94,0.25945075]
[1752141759096,1.49201485,670.61,669.94,0.25945075]
[1752141759298,1.49201485,670.6,669.94,0.25945075]
[1752141759598,2.53882745,670.59,669.94,0.25945075]
[1752141759801,1.49201485,670.58,669.94,0.25945075]
[1752141760098,2.5388318,670.57,669.94,0.25945075]
[1752141760298,1.49201485,670.56,669.94,0.25945075]
[1752141760597,1.49201485,670.55,669.94,0.25945075]
[1752141760797,1.49201485,670.54,669.94,0.25945075]
[1752141761004,1.49201485,670.53,669.94,0.25945075]
[1752141761200,1.49201485,670.52,669.94,0.25945075]
[1752141761401,1.49201485,670.51,669.94,0.25945075]
[1752141761599,1.49201485,670.5,669.94,0.25945075]
[1752141761798,1.49201485,670.49,669.94,0.25945075]
[1752141762002,1.49201485,670.48,669.94,0.25945075]
[1752141762202,1.49201485,670.47,669.94,0.25945075]
[1752141762399,1.49201485,670.46,669.94,0.25945075]
[1752141762702,1.49201485,670.45,669.94,0.25945075]
[1752141762904,1.49201485,670.44,669.94,0.25945075]
[1752141763100,1.49201485,670.43,669.94,0.25945075]
[1752141763303,1.49201485,670.42,669.94,0.25945075]
[1752141763505,1.49201485,670.41,669.94,0.25945075]
[1752141763698,1.49201485,670.4,669.94,0.25945075]
[1752141763900,1.49201485,670.39,669.94,0.25945075]
[1752141764101,1.49201485,670.38,669.94,0.25945075]
[1752141764299,1.49201485,670.37,669.94,0.25945075]
[1752141764599,1.49201485,670.36,669.94,0.25945075]
[1752141764797,1.49201485,670.35,669.94,0.25945075]
[1752141765002,1.49201485,670.34,669.94,0.25945075]
[1752141765196,1.49201485,670.33,669.94,0.25945075]
[1752141765396,1.49201485,670.32,669.94,0.25945075]
[1752141765598,1.49201485,670.31,669.94,0.25945075]
[1752141765798,1.49201485,670.3,669.94,0.25945075]
[1752141765998,1.49201485,670.29,669.94,0.25945075]
[1752141766199,1.49201485,670.28,669.94,0.25945075]
[1752141766501,1.49201485,670.27,669.94,0.25945075]
[1752141766702,1.49201485,670.26,669.94,0.25945075]
[1752141767004,1.49201485,670.25,669.94,0.25945075]
[1752141767198,1.49201485,670.24,669.94,0.25945075]
[1752141767500,1.49201485,670.23,668.35,5.52994749]
[1752141767703,1.49201485,670.22,669.8,0.25979649]
[1752141768003,1.49201485,670.21,668.26,5.52994749]
[1752141768204,1.49201485,670.2,669.8,0.25980716]
[1752141768404,1.49201485,670.19,668.22,5.52994749]
[1752141768703,1.49201485,670.18,668.17,5.52994749]
[1752141768901,1.49201485,670.17,668.17,5.52994749]
[1752141769103,1.49201485,670.16,668.17,5.52994749]
[1752141769306,1.49201485,670.15,668.13,5.52994749]
[1752141769503,1.49201485,670.14,668.13,5.52994749]
[1752141769800,1.49201485,670.13,668.66,0.25982171]
[1752141770004,1.49201485,670.12,668.66,0.25982171]
[1752141770204,1.49201485,670.11,668.66,0.25982171]
[1752141770404,1.49201485,670.1,668.66,0.25982171]
[1752141770604,1.66735556,670.5,668.66,0.25982171]